bitfinex/quotes_ETHUSD_20250703
["timestamp","ask_amount","ask_price","bid_price","bid_amount"]
[1751556881028,1.26846973,2583.0,2582.2,4.65791135]
[1751556881189,3.87161717,2582.9,2582.2,4.65791135]
[1751556881383,3.87195517,2582.7,2582.2,0.7853]
[1751556881582,3.87195517,2582.7,2582.1,0.03872816]
[1751556881583,3.87236809,2582.4,2582.1,0.03872816]
[1751556881783,3.87236809,2582.4,2581.9,0.7828]
[1751556881983,3.87237977,2582.4,2581.9,0.7828]
[1751556882188,0.38723798,2582.4,2581.5,0.7928]
[1751556882428,3.87269049,2582.2,2581.6,0.03873566]
[1751556882601,3.87241387,2582.4,2581.8,3.8731725]
[1751556882929,4.64635708,2582.6,2581.6,3.9122707]
[1751556882930,3.87261106,2582.3,2581.7,3.87341674]
[1751556883436,4.64631815,2582.6,2581.8,0.03873266]
[1751556883727,4.64633005,2582.6,2582.0,3.87291015]
[1751556884027,0.85182491,2582.5,2582.0,3.87291015]
[1751556884626,0.85182491,2582.5,2581.8,0.03873266]
[1751556884788,40.0,2582.7,2582.2,3.87266668]
[1751556884988,30.0,2582.7,2582.2,3.87266668]
[1751556885188,30.0,2582.7,2582.1,0.7969]
[1751556885489,30.0,2582.7,2582.3,3.87249571]
[1751556885691,7.72090198,2582.7,2582.1,4.66963762]
[1751556886016,13.84889248,2582.7,2582.2,3.87266395]
[1751556886222,7.72085984,2582.7,2582.2,3.87266395]
[1751556886527,7.72085984,2582.7,2582.1,4.66965772]
[1751556886820,13.84889248,2582.7,2582.2,3.87264011]
[1751556886993,13.84889248,2582.7,2582.3,3.87251525]
[1751556887188,3.84889248,2582.7,2582.2,3.8725923]
[1751556887526,0.7979,2583.3,2582.6,0.8101]
[1751556887692,0.1928,2583.0,2582.7,3.91063614]
[1751556888032,0.1928,2583.0,2582.9,3.87161717]
[1751556888194,0.1928,2583.2,2583.1,3.87118994]
[1751556889188,0.1928,2583.2,2583.0,3.87140425]
[1751556889393,0.1928,2583.2,2582.8,3.87164396]
[1751556889593,0.1928,2583.2,2582.7,4.0646699]
[1751556889594,0.1928,2583.2,2582.9,3.87151278]
[1751556889835,0.1928,2583.2,2583.0,3.87137976]
[1751556890334,0.1928,2583.2,2583.0,3.87146728]
[1751556890698,0.1928,2583.2,2582.9,3.91018424]
[1751556890893,13.87260257,2583.1,2582.3,0.8089]
[1751556891115,16.94351955,2582.7,2581.6,0.8089]
[1751556891320,16.94351955,2582.7,2581.9,0.1936]
[1751556891321,0.1936,2582.3,2581.9,0.1936]
[1751556891635,0.1936,2582.3,2582.0,0.01]
[1751556892415,3.87281669,2582.1,2582.0,0.01]
[1751556892627,3.87274716,2582.2,2582.0,0.01]
[1751556892806,5.56725166,2582.1,2582.0,0.01]
[1751556893326,6.32555166,2582.1,2582.0,0.01]
[1751556894229,3.87356678,2581.6,2581.5,0.01]
[1751556894520,47.70346935,2581.6,2581.5,0.01]
[1751556894725,51.55236183,2581.6,2581.5,0.01]
[1751556896209,47.67879505,2581.6,2580.3,0.85865518]
[1751556896409,3.87375711,2581.5,2580.5,3.87514266]
[1751556896606,21.55245871,2581.6,2580.6,3.91380643]
[1751556896808,3.87332891,2581.8,2580.7,4.68825828]
[1751556897031,3.87348084,2581.7,2580.8,0.58874767]
[1751556897242,3.87358196,2581.6,2580.8,0.58874767]
[1751556897529,10.0,2582.0,2580.8,0.58874767]
[1751556897530,3.87409256,2581.3,2580.8,3.87463825]
[1751556897736,3.87381081,2581.5,2580.7,0.85214917]
[1751556897737,0.8295,2581.5,2580.7,0.85214917]
[1751556897906,0.8295,2581.5,2581.0,3.87438981]
[1751556898106,0.85765835,2581.5,2581.0,3.87439742]
[1751556898313,4.73138087,2581.5,2581.0,3.87439742]
[1751556898627,3.87364371,2581.6,2581.1,3.87431424]
[1751556898827,3.87364617,2581.6,2581.0,3.87437722]
[1751556899132,3.8737187,2581.5,2581.0,3.87440571]
[1751556899303,3.87394527,2581.4,2580.9,3.87450548]
[1751556899499,3.87351635,2581.7,2581.0,0.03874467]
[1751556899733,3.87351635,2581.7,2580.7,0.8134]
[1751556899734,0.85782325,2581.6,2581.1,3.87429013]
[1751556899935,3.87351635,2581.7,2579.5,4.16189672]
[1751556899936,30.0,2581.7,2579.5,4.16189672]
[1751556900139,7.75344058,2579.5,2575.7,20.50687033]
[1751556900298,1.99636442,2578.2,2575.7,18.51244155]
[1751556900497,10.0,2579.3,2574.2,1.91532712]
[1751556900498,3.88349514,2575.0,2574.2,1.91532712]
[1751556900740,3.88349514,2575.0,2574.9,0.19161053]
[1751556900741,18.73313703,2575.0,2574.9,0.19161053]
[1751556900936,3.88440196,2574.4,2573.2,0.00836999]
[1751556901243,30.0,2572.6,2571.1,3.88935577]
[1751556901424,2.25181119,2572.4,2570.8,0.5]
[1751556901608,0.90748512,2572.4,2570.7,1.167283]
[1751556901809,5.24899055,2572.4,2572.3,0.1652186]
[1751556902013,5.24899055,2572.4,2569.5,3.89167625]
[1751556902014,4.63387447,2572.4,2571.4,0.5]
[1751556902217,12.21128057,2572.0,2570.8,0.40905673]
[1751556902423,0.89175016,2571.9,2571.1,3.88935251]
[1751556902631,7.42905448,2571.5,2570.6,3.89007618]
[1751556902812,3.71486859,2570.7,2570.6,3.89014237]
[1751556903138,0.89148653,2570.7,2570.6,0.8022]
[1751556903306,0.89148653,2570.7,2570.6,5.16548034]
[1751556903814,0.69283458,2570.7,2570.6,5.16548034]
[1751556904019,0.69283458,2570.7,2570.6,1.27533797]
[1751556904020,0.65692278,2570.7,2570.6,1.27533797]
[1751556904408,1.79888539,2571.0,2570.9,3.88968843]
[1751556904744,7.37364501,2571.5,2571.2,3.88912535]
[1751556904913,7.37364501,2571.5,2571.4,3.88893209]
[1751556905114,7.37364501,2571.5,2569.9,3.89110632]
[1751556905342,1.09499492,2570.6,2570.0,1.41251925]
[1751556905556,1.45999323,2570.2,2570.0,0.32608442]
[1751556905852,0.5,2570.1,2570.0,0.32608442]
[1751556906057,1.95992186,2570.1,2570.0,0.62309222]
[1751556906352,2.68998985,2570.1,2570.0,0.32608442]
[1751556906557,1.45378653,2570.1,2570.0,0.32608442]
[1751556906852,2.18998985,2570.4,2570.2,3.8907478]
[1751556907018,0.8115,2571.8,2570.1,4.64169918]
[1751556907019,0.8115,2571.8,2570.4,10.0]
[1751556907221,1.44851349,2570.7,2570.6,3.89014237]
[1751556907519,0.5,2571.1,2570.3,0.8532447]
[1751556907721,1.08648693,2570.9,2570.4,0.03890445]
[1751556907923,1.08648693,2570.8,2570.4,0.03890445]
[1751556908130,0.5,2571.2,2570.4,3.92922392]
[1751556908450,0.5,2570.8,2570.4,0.03890445]
[1751556908650,0.5,2570.3,2570.2,0.03890747]
[1751556909057,0.5,2570.3,2570.2,4.35524322]
[1751556909230,0.5,2570.3,2570.2,0.03890747]
[1751556909420,0.5,2570.1,2570.0,0.32608442]
[1751556909749,0.5,2570.3,2570.2,3.8907478]
[1751556910118,0.5,2570.1,2570.0,0.32608442]
[1751556910318,0.5,2570.1,2570.0,4.217135]
[1751556910577,0.5,2570.4,2570.0,1.52604092]
[1751556910734,40.0,2571.2,2570.1,0.03890899]
[1751556910932,1.89533177,2571.1,2570.0,0.32608442]
[1751556911249,0.03874484,2571.1,2571.0,3.88953714]
[1751556911447,1.07579677,2571.7,2571.5,3.88878086]
[1751556911650,1.07579677,2571.9,2570.6,0.7681]
[1751556911879,1.07579677,2571.8,2571.3,3.88907922]
[1751556912055,1.07579677,2571.7,2570.7,3.88999105]
[1751556912230,1.07579677,2571.9,2571.7,3.88847843]
[1751556912437,1.44864924,2572.0,2571.8,1.6]
[1751556912634,1.44864924,2572.0,2571.1,3.92823247]
[1751556912635,0.2025445,2572.8,2571.9,3.88817605]
[1751556912837,1.43276226,2572.0,2571.9,0.7783]
[1751556913074,5.02909741,2573.5,2572.7,3.88682064]
[1751556913291,1.35001974,2573.4,2572.8,3.88668171]
[1751556913438,1.35001974,2573.4,2572.0,3.92678863]
[1751556913439,3.88617147,2573.3,2572.0,3.92678863]
[1751556913638,0.7701,2573.4,2572.0,0.03888024]
[1751556913864,3.57969053,2573.5,2572.7,3.88696699]
[1751556914036,5.02909741,2573.5,2573.2,3.88612036]
[1751556914232,5.02909741,2573.5,2572.8,0.03886815]
[1751556914470,3.5780952,2573.2,2573.1,3.88636275]
[1751556914637,5.02909741,2573.6,2573.5,3.88575869]
[1751556914966,7.37364501,2574.1,2573.6,3.88558088]
[1751556915166,7.37364501,2574.1,2573.3,0.0388606]
[1751556915335,7.37364501,2574.1,2574.0,3.88500388]
[1751556915668,16.71198778,2574.5,2574.4,3.88440024]
[1751556915869,16.71198778,2574.5,2574.2,7.76910296]
[1751556916168,7.37364501,2574.5,2574.4,3.88440024]
[1751556916538,8.23299799,2574.5,2574.4,3.88440024]
[1751556917356,0.85935298,2574.5,2574.4,3.88440024]
[1751556917676,7.16766683,2574.8,2574.7,3.88394764]
[1751556917974,9.33834277,2575.3,2575.2,3.88319353]
[1751556918265,20.92703924,2576.0,2574.4,0.77689499]
[1751556918486,30.0,2575.9,2574.5,3.88424936]
[1751556918786,30.0,2575.9,2575.3,3.88300929]
[1751556918943,30.0,2575.9,2574.0,10.0]
[1751556919293,30.0,2575.9,2574.7,3.88381354]
[1751556919467,10.0,2575.8,2574.9,3.88360135]
[1751556919668,30.0,2575.5,2574.9,3.88360135]
[1751556919870,1.0,2575.7,2574.8,0.03883796]
[1751556920177,3.88236759,2575.8,2575.0,3.88345499]
[1751556920379,3.88236759,2575.8,2574.7,3.8838362]
[1751556920380,30.0,2576.0,2575.2,3.88319353]
[1751556920565,30.0,2575.9,2573.9,3.88515482]
[1751556920755,3.88258308,2575.7,2575.0,3.88339391]
[1751556920956,3.88267614,2575.6,2575.0,3.88341285]
[1751556921163,3.88304812,2575.3,2574.7,3.88384263]
[1751556921349,3.8824812,2575.7,2574.6,0.03884098]
[1751556921550,30.0,2575.7,2575.2,3.88318081]
[1751556921749,30.0,2575.0,2573.1,0.77728883]
[1751556921958,0.8041,2575.1,2573.5,3.88571789]
[1751556922195,3.88367935,2574.9,2574.0,3.88490345]
[1751556922507,30.0,2575.0,2574.3,3.88446623]
[1751556922658,0.8041,2575.1,2574.2,3.88467658]
[1751556922982,0.8041,2575.1,2574.3,3.92330137]
[1751556923282,1.27283009,2575.1,2574.3,0.03884551]
[1751556923483,4.68745524,2575.1,2573.9,3.88515482]
[1751556923648,4.68755326,2575.1,2574.0,3.92385391]
[1751556923852,0.8041,2575.1,2574.6,3.88409506]
[1751556924053,0.03885004,2575.0,2574.5,0.03884249]
[1751556924285,0.03885004,2575.0,2573.7,3.88545673]
[1751556924585,0.8041,2575.1,2574.4,3.88436739]
[1751556924885,0.04854368,2575.0,2572.9,10.0]
[1751556925088,0.04854368,2575.0,2573.7,0.55]
[1751556925258,0.8041,2575.1,2574.9,0.1936]
[1751556925458,0.04853803,2575.3,2574.9,0.1936]
[1751556925657,7.3067729,2575.1,2574.9,0.1936]
[1751556926164,7.3067729,2575.1,2575.0,3.90288998]
[1751556926364,0.7997,2575.6,2574.9,0.1936]
[1751556926681,9.38812579,2575.2,2574.9,0.1936]
[1751556926880,3.88358632,2575.0,2573.6,0.55]
[1751556927082,5.14880754,2573.9,2573.5,0.7753]
[1751556927402,5.14880754,2573.9,2573.8,4.07890577]
[1751556927700,5.14880754,2574.7,2573.8,0.1936]
[1751556927912,3.6972383,2574.4,2574.3,3.88454033]
[1751556928059,3.6972383,2574.5,2574.4,3.88440024]
[1751556928262,0.1936,2575.0,2574.4,0.1936]
[1751556928574,3.88389519,2574.8,2574.4,0.1936]
[1751556928769,11.55461636,2574.5,2574.4,0.1936]
[1751556928972,7.43303899,2574.7,2574.4,0.1936]
[1751556929296,7.48158833,2574.7,2574.4,0.1936]
[1751556929704,4.78328103,2574.6,2574.4,0.1936]
[1751556929913,1.73400912,2575.0,2574.4,0.1936]
[1751556929914,0.89912277,2574.5,2574.4,0.1936]
[1751556930070,0.89912277,2574.5,2574.2,3.8845781]
[1751556930271,9.66295069,2574.6,2574.4,0.1936]
[1751556930638,2.6945131,2574.5,2574.0,0.1936]
[1751556930894,0.89956492,2574.4,2574.3,0.1936]
[1751556931187,0.89956492,2574.4,2573.3,3.88593147]
[1751556931188,3.88494,2574.1,2573.6,0.1936]
[1751556931389,10.56251561,2574.0,2573.9,3.88515482]
[1751556931591,7.50743356,2574.1,2574.0,3.88500388]
[1751556931766,7.50743356,2574.1,2574.0,4.07860388]
[1751556931978,7.50743356,2574.1,2574.0,0.1936]
[1751556932178,11.26160508,2574.1,2574.0,4.07860388]
[1751556932390,5.25584014,2574.4,2574.3,3.88455114]
[1751556932898,5.25584014,2574.4,2574.3,4.07815114]
[1751556933399,5.25584014,2574.5,2574.4,3.88440024]
[1751556933606,9.00778137,2574.5,2574.4,3.88440024]
[1751556933825,3.75194123,2574.5,2574.3,4.07815114]
[1751556933970,3.75194123,2574.5,2574.4,3.88440024]
[1751556934176,3.75194123,2574.6,2574.5,3.88424936]
[1751556934424,5.25584014,2574.9,2574.4,3.88440024]
[1751556934581,5.25584014,2574.9,2574.5,0.1936]
[1751556934783,5.25584014,2574.9,2574.8,0.1936]
[1751556935397,5.25584014,2575.0,2574.8,0.1936]
[1751556935798,5.25584014,2574.9,2574.8,0.1936]
[1751556936198,5.25584014,2574.9,2574.5,3.88424936]
[1751556936399,3.74928476,2574.6,2574.5,3.88424936]
[1751556936617,3.74928476,2574.6,2573.7,10.9905]
[1751556936916,3.74928476,2574.5,2574.4,3.88428099]
[1751556937118,3.74928476,2574.6,2574.4,3.88428099]
[1751556937500,3.74928476,2574.6,2574.5,3.88424936]
[1751556937701,5.25584014,2575.0,2574.7,3.8839469]
[1751556937900,5.25584014,2574.9,2574.6,3.88406145]
[1751556938089,5.25584014,2574.9,2574.3,3.88455114]
[1751556938288,3.74945388,2574.6,2574.5,3.88416903]
[1751556938917,3.74945388,2574.8,2574.7,3.88394764]
[1751556939117,3.74945388,2574.9,2574.8,3.88379679]
[1751556939823,3.74945388,2575.0,2574.9,3.88364596]
[1751556940022,5.25584014,2575.3,2575.0,3.88336513]
[1751556940223,0.04853426,2575.5,2575.0,3.88342446]
[1751556940388,3.88314902,2575.3,2574.0,3.88500388]
[1751556940593,3.00354105,2574.3,2574.2,3.88470204]
[1751556941121,3.75442631,2574.6,2574.5,3.88424936]
[1751556941322,5.25619684,2574.8,2574.5,3.88424936]
[1751556941631,5.25619684,2574.8,2574.7,3.88394764]
[1751556941793,0.02,2574.9,2574.7,3.88394764]
[1751556941794,0.02,2574.9,2574.8,3.88379679]
[1751556942194,0.02,2574.9,2574.7,3.88388641]
[1751556942400,3.02687848,2574.9,2574.7,3.88386338]
[1751556942795,3.02687848,2574.9,2574.4,3.88427264]
[1751556943002,3.02687848,2574.9,2574.4,3.88440024]
[1751556943209,3.00687848,2574.8,2574.3,3.88455114]
[1751556943409,5.75325619,2574.8,2574.4,0.36094788]
[1751556943593,0.57732562,2574.8,2574.5,0.36094788]
[1751556943798,1.01574557,2574.9,2574.2,0.28900227]
[1751556943799,0.90350848,2574.7,2574.6,0.36094788]
[1751556944234,0.90350848,2574.7,2574.6,4.24504638]
[1751556945131,0.90350848,2574.7,2574.6,0.36094788]
[1751556945429,0.2715607,2574.7,2574.6,0.36094788]
[1751556946315,0.02,2574.9,2574.6,0.36094788]
[1751556946518,0.06854557,2574.9,2574.7,0.36094788]
[1751556946717,3.95226766,2574.9,2574.8,0.36172933]
[1751556947119,0.02,2574.9,2574.8,0.36172933]
[1751556947430,0.02,2574.9,2574.8,0.55532933]
[1751556948231,0.02,2574.9,2574.8,4.43912612]
[1751556948912,1.05292672,2575.9,2575.4,3.88276466]
[1751556949241,1.94563892,2575.9,2575.5,0.36172933]
[1751556949446,1.44021553,2575.9,2575.4,3.88289187]
[1751556949647,1.44021553,2575.9,2575.5,0.1936]
[1751556950041,0.54750333,2575.9,2575.5,4.07629413]
[1751556950207,0.02,2576.0,2575.7,3.88241039]
[1751556950411,0.02,2576.0,2575.8,3.88221489]
[1751556950710,0.02,2576.0,2575.9,3.88213828]
[1751556951012,1.06833014,2576.5,2575.9,0.7728097]
[1751556951210,3.88172212,2576.2,2576.0,0.36200606]
[1751556951512,0.04852107,2576.2,2576.0,3.88192089]
[1751556951714,0.04851542,2576.5,2576.1,3.88173691]
[1751556952010,0.24211354,2576.6,2576.1,0.23241836]
[1751556952234,3.88114716,2576.6,2576.3,0.1936]
[1751556952437,3.92946292,2576.7,2576.3,0.1936]
[1751556952624,0.95078461,2576.7,2576.3,0.1936]
[1751556952941,0.90227295,2576.7,2576.3,0.1936]
[1751556953122,0.04851354,2576.6,2576.3,0.1936]
[1751556953316,0.04851166,2576.7,2576.3,0.1936]
[1751556953542,1.26110977,2576.8,2576.3,0.1936]
[1751556953739,1.06750977,2576.8,2576.5,0.1936]
[1751556954040,1.06750977,2576.8,2576.7,1.54442445]
[1751556954256,4.89991801,2576.8,2576.7,2.47107912]
[1751556954462,1.96492496,2576.8,2576.7,2.47107912]
[1751556954644,5.84570732,2576.8,2576.7,2.47107912]
[1751556955358,1.96492496,2576.8,2576.7,2.47107912]
[1751556955678,5.84570732,2576.8,2576.7,2.47107912]
[1751556956013,5.84570732,2576.8,2576.7,0.92665467]
[1751556956211,5.84570732,2576.8,2576.7,2.46915447]
[1751556956420,1.96492496,2576.8,2576.7,2.46915447]
[1751556956621,1.0156,2577.2,2576.7,2.46915447]
[1751556956840,0.01421185,2576.8,2576.7,0.1936]
[1751556957062,0.01421185,2576.8,2576.7,3.43565459]
[1751556957262,0.01421185,2576.8,2576.7,4.99995088]
[1751556957654,0.7039,2577.4,2577.2,3.88015867]
[1751556957985,0.7039,2577.4,2577.3,4.99904739]
[1751556958147,0.7039,2577.4,2577.3,6.48841934]
[1751556958479,0.7039,2577.4,2577.3,5.29450405]
[1751556958892,0.7039,2577.4,2577.3,6.76368425]
[1751556959075,0.7039,2577.4,2577.3,5.22352434]
[1751556959391,0.7039,2577.4,2577.3,6.72388415]
[1751556959683,0.7039,2577.4,2577.3,6.33915441]
[1751556959880,0.7039,2577.4,2577.3,5.18472405]
[1751556960048,0.7039,2577.4,2577.3,5.22352434]
[1751556960483,0.7039,2577.4,2577.3,2.84385467]
[1751556960723,0.7039,2577.4,2577.3,4.36908614]
[1751556960989,0.7039,2577.4,2577.3,0.1936]
[1751556961152,0.7039,2577.4,2577.3,1.34805372]
[1751556961351,1.16227058,2577.4,2577.1,1.19325702]
[1751556961546,1.16227058,2577.4,2577.3,3.88002948]
[1751556961547,0.7039,2577.4,2577.3,3.88002948]
[1751556961786,0.7039,2577.4,2577.3,1.15445372]
[1751556961993,0.7039,2577.4,2577.2,1.15445372]
[1751556962196,0.7039,2577.4,2577.1,5.07348165]
[1751556962353,0.7039,2577.4,2577.2,1.15445372]
[1751556962697,1.1671188,2577.4,2577.3,1.53747246]
[1751556962992,0.7039,2577.4,2577.2,5.41763021]
[1751556963150,0.7039,2577.4,2577.3,3.88002948]
[1751556963380,0.7039,2577.4,2577.3,4.23905725]
[1751556963578,0.7039,2577.4,2577.3,2.66298081]
[1751556963779,0.7039,2577.4,2577.3,4.23905725]
[1751556963985,0.7039,2577.4,2577.3,6.54301029]
[1751556964414,0.7039,2577.4,2577.3,4.23905725]
[1751556964580,0.7039,2577.4,2577.3,5.77402114]
[1751556964779,0.7039,2577.4,2577.3,1.93279195]
[1751556964997,0.7039,2577.4,2577.3,5.81282143]
[1751556966208,0.7039,2577.4,2577.3,4.27785754]
[1751556966414,0.7039,2577.4,2577.3,6.57768573]
[1751556966580,0.7039,2577.4,2577.3,4.27785754]
[1751556966992,0.7039,2577.4,2577.3,6.5388939]
[1751556967188,0.7039,2577.4,2577.3,4.23905725]
[1751556967389,0.7039,2577.4,2577.3,4.24905725]
[1751556967677,0.7239,2577.4,2577.3,6.5488939]
[1751556967882,0.7239,2577.4,2577.3,4.24905725]
[1751556968078,0.7239,2577.4,2577.3,4.28785754]
[1751556968411,0.7239,2577.4,2577.3,6.58769419]
[1751556968921,0.7239,2577.4,2577.3,4.24905725]
[1751556969210,0.7239,2577.4,2577.3,5.82033418]
[1751556969608,0.7239,2577.4,2577.3,4.28785754]
[1751556970479,0.0103494,2577.6,2577.3,13.89002948]
[1751556970685,0.0103494,2577.6,2577.5,5.08682841]
[1751556970885,0.0103494,2577.6,2577.5,6.00595945]
[1751556971086,0.0103494,2577.6,2577.5,7.15496769]
[1751556971389,0.0103494,2577.6,2577.5,6.14146769]
[1751556972895,0.0103494,2577.6,2577.5,6.14160503]
[1751556973199,0.0103494,2577.6,2577.5,6.52454268]
[1751556973716,0.0103494,2577.6,2577.5,6.14172388]
[1751556973921,0.0103494,2577.6,2577.5,5.03135974]
[1751556974082,0.0103494,2577.6,2577.5,6.52454268]
[1751556974287,0.0103494,2577.6,2577.5,4.99256246]
[1751556974522,0.0103494,2577.6,2577.5,6.14213359]
[1751556975012,0.0103494,2577.6,2577.5,4.99256246]
[1751556975182,0.0103494,2577.6,2577.5,6.56333996]
[1751556975842,0.0103494,2577.6,2577.5,6.5646393]
[1751556976042,0.0103494,2577.6,2577.5,5.03135974]
[1751556976545,0.0103494,2577.6,2577.5,7.33119639]
[1751556976713,1.2078,2578.4,2578.2,3.87864526]
[1751556976910,0.02,2578.5,2578.4,3.87837418]
[1751556977341,0.02,2578.5,2578.3,0.1936]
[1751556977737,0.02,2578.5,2578.3,0.49091293]
[1751556978942,4.81386325,2578.5,2578.3,0.49091293]
[1751556979128,0.93563096,2578.5,2578.3,0.49091293]
[1751556979321,0.93563096,2578.5,2578.0,1.15056369]
[1751556979322,0.04847967,2578.4,2578.0,1.15056369]
[1751556979522,0.02,2578.5,2578.1,0.9227284]
[1751556979727,0.02,2578.5,2578.4,3.87837418]
[1751556979926,0.02,2578.5,2578.4,4.83980751]
[1751556980127,0.02,2578.5,2578.4,5.03340751]
[1751556981343,0.02,2578.5,2578.4,6.14518746]
[1751556981544,0.02,2578.5,2578.4,2.26681328]
[1751556981952,0.02,2578.5,2578.4,1.11624959]
[1751556982331,0.02,2578.5,2578.4,2.26681328]
[1751556982725,3.89822377,2578.5,2578.4,2.26681328]
[1751556983052,0.79761797,2578.5,2578.4,2.07321328]
[1751556983248,4.67584174,2578.5,2578.4,2.07321328]
[1751556983751,0.1936,2578.4,2577.9,1.34416369]
[1751556983915,3.87874513,2578.2,2578.0,0.92496427]
[1751556984122,3.87874513,2578.2,2578.1,0.92496427]
[1751556984451,4.65932047,2578.2,2578.1,0.92496427]
[1751556984836,0.78057534,2578.2,2577.8,0.1936]
[1751556985054,0.78057534,2578.2,2577.9,0.92573601]
[1751556985230,3.87894895,2578.1,2578.0,1.11933601]
[1751556985423,3.87894895,2578.1,2578.0,1.12012547]
[1751556986064,3.87869552,2578.2,2578.0,0.92652547]
[1751556986244,0.1936,2578.4,2578.1,0.92652547]
[1751556986557,3.87853441,2578.3,2578.2,0.92737262]
[1751556987142,3.87844711,2578.4,2578.2,0.92737262]
[1751556987348,4.38836182,2578.4,2578.3,0.92737262]
[1751556987553,0.04847967,2578.4,2578.3,0.92737262]
[1751556987735,1.26917779,2578.5,2578.3,0.92737262]
[1751556987927,1.26917779,2578.5,2578.4,0.92737262]
[1751556988129,1.2207,2578.5,2578.4,0.92737262]
[1751556988466,0.02,2578.5,2578.4,0.92737262]
[1751556988660,1.2028,2578.9,2578.4,0.92737262]
[1751556988661,0.78520034,2578.9,2578.5,3.87812405]
[1751556988830,5.51684821,2578.9,2578.6,1.65282081]
[1751556989029,5.51684821,2578.9,2578.7,0.36274289]
[1751556989241,3.87800235,2578.7,2578.3,1.15815684]
[1751556989465,1.63921791,2578.9,2578.4,1.29108355]
[1751556989632,1.63921791,2578.9,2578.5,0.92839501]
[1751556989965,5.51686526,2578.9,2578.6,0.92839501]
[1751556990261,5.51684491,2578.9,2578.4,3.87830421]
[1751556990462,0.55168653,2578.8,2578.5,0.92834014]
[1751556990663,33.87739697,2579.1,2578.6,5.1690723]
[1751556990826,3.87749995,2579.0,2578.7,1.29101078]
[1751556991030,3.87762224,2578.9,2578.8,1.29101078]
[1751556991268,3.87762224,2578.9,2578.8,0.36267064]
[1751556991437,4.65313468,2578.9,2578.8,0.36267064]
[1751556991763,0.77551244,2578.9,2578.8,0.92843252]
[1751556991963,5.078631,2579.0,2578.8,0.92843252]
[1751556991964,1.2011,2579.0,2578.8,0.92843252]
[1751556992139,3.87738424,2579.1,2578.6,3.87800975]
[1751556992332,3.87725115,2579.2,2578.7,0.92838896]
[1751556992535,1.2011,2579.3,2578.8,0.96716668]
[1751556992735,3.87681848,2579.5,2579.0,5.03555898]
[1751556992968,0.38768185,2579.5,2579.1,0.92838896]
[1751556993131,0.38768185,2579.5,2579.2,0.92838896]
[1751556993338,3.87652741,2579.7,2579.3,0.92838896]
[1751556993539,3.87637965,2579.8,2579.4,0.92777547]
[1751556993860,3.87642171,2579.7,2579.5,0.92776336]
[1751556994061,5.07726497,2579.9,2579.2,0.03877171]
[1751556994264,5.07726497,2579.9,2579.3,0.92775362]
[1751556994265,3.87693646,2579.4,2579.3,0.92775362]
[1751556994465,3.87680545,2579.5,2579.3,0.92775362]
[1751556994665,3.87680545,2579.5,2579.0,1.15815684]
[1751556994867,3.87680545,2579.5,2579.1,1.28985915]
[1751556995069,3.87684072,2579.5,2579.2,1.28985915]
[1751556995233,3.87672029,2579.5,2579.3,1.28985915]
[1751556995434,3.87725116,2579.2,2578.9,1.15815684]
[1751556995654,3.87725116,2579.2,2579.0,1.28956972]
[1751556995850,3.877017,2579.4,2579.1,1.28956972]
[1751556996162,4.26446256,2579.5,2579.2,1.28956972]
[1751556996334,4.26445771,2579.5,2579.3,1.28956972]
[1751556996534,4.26445771,2579.5,2579.4,0.36242876]
[1751556997261,3.87647344,2579.7,2579.4,0.36242876]
[1751556997465,3.87657001,2579.6,2579.5,0.36218976]
[1751556997874,3.87687059,2579.4,2579.3,0.1936]
[1751556998038,3.87687059,2579.4,2579.3,0.55579677]
[1751556998232,3.87668481,2579.6,2579.3,0.55579677]
[1751556998441,4.67135879,2579.6,2579.4,0.36219677]
[1751556998633,4.06991561,2579.8,2579.3,0.1936]
[1751556998634,3.87644349,2579.7,2579.3,0.1936]
[1751556998837,5.07732109,2579.9,2579.4,0.40088271]
[1751556999038,3.87622109,2579.9,2579.6,0.1936]
[1751556999270,3.87641973,2579.7,2579.6,0.1936]
[1751556999773,3.87681912,2579.5,2579.4,0.1936]
[1751556999955,3.87681912,2579.5,2579.4,1.48191004]
[1751557000477,0.1936,2579.9,2579.4,1.48191004]
[1751557000646,0.2130906,2580.1,2579.5,1.64554433]
[1751557000867,3.87611922,2579.9,2579.7,0.1936]
[1751557001204,3.8761248,2579.9,2579.7,0.1936]
[1751557001580,4.08898136,2580.1,2579.8,0.36178011]
[1751557001780,0.2130906,2580.1,2580.0,0.1936]
[1751557002099,4.08890936,2580.1,2580.0,0.1936]
[1751557002281,5.02807676,2580.1,2580.0,0.1936]
[1751557003091,3.87657306,2579.6,2579.3,1.15815684]
[1751557003297,3.87657306,2579.6,2579.4,1.28723964]
[1751557003494,1.152258,2580.1,2579.5,1.48083964]
[1751557003696,3.87629558,2579.8,2579.6,1.28723964]
[1751557004011,4.26411666,2579.7,2579.4,0.1936]
[1751557004212,3.87619027,2579.9,2579.5,0.40042244]
[1751557004369,3.87641973,2579.7,2579.6,1.48057539]
[1751557004791,3.87641973,2579.7,2579.6,0.36165524]
[1751557004975,3.87717121,2579.2,2579.1,0.1936]
[1751557005177,4.26488833,2579.2,2579.1,1.28712054]
[1751557005498,4.26488833,2579.2,2578.9,0.1936]
[1751557005701,3.87747188,2579.0,2578.9,0.1936]
[1751557005869,3.87747188,2579.0,2578.9,0.5553123]
[1751557007170,3.87747188,2579.0,2578.9,0.3617123]
[1751557007374,3.8777726,2578.8,2578.7,0.1936]
[1751557007709,3.8785246,2578.3,2578.1,1.15815684]
[1751557007999,3.8785246,2578.3,2578.2,0.36192585]
[1751557008000,3.87852804,2578.3,2578.2,0.36192585]
[1751557008368,3.87852804,2578.3,2578.1,0.1936]
[1751557008569,3.87867504,2578.2,2577.7,2.37825684]
[1751557008802,3.87890136,2578.1,2577.8,0.36192873]
[1751557008971,3.87890136,2578.1,2578.0,0.1936]
[1751557009167,3.87890136,2578.1,2578.0,0.55552873]
[1751557009691,4.07190918,2578.5,2578.0,0.55551951]
[1751557010005,3.87792298,2578.7,2578.4,0.1936]
[1751557010172,0.5110123,2578.7,2578.4,0.1936]
[1751557010372,0.5110123,2578.7,2577.7,5.3977644]
[1751557010373,3.87815291,2578.6,2578.0,3.87886495]
[1751557010574,0.81425105,2579.0,2578.5,0.1936]
[1751557010889,3.87747188,2579.0,2578.5,0.1936]
[1751557011089,3.87785183,2578.8,2578.7,0.1936]
[1751557012004,3.87755525,2579.0,2578.7,0.1936]
[1751557012205,3.87733509,2579.1,2578.7,0.1936]
[1751557012371,3.87738864,2579.1,2578.8,0.55537605]
[1751557012708,5.48275565,2579.2,2578.8,0.1936]
[1751557013023,4.07040474,2579.5,2579.0,0.1936]
[1751557013323,4.07040785,2579.5,2579.0,0.1936]